[Event "Late-Titled-Tuesday-Blitz-July-09-2024"]
[Site "Chess.com"]
[Date "2024.07.09"]
[Round "2"]
[White "Mbneu"]
[Black "ACollins05"]
[Result "0-1"]
[WhiteElo "2251"]
[BlackElo "2486"]
[TimeControl "180+1"]
[EndTime "14:17:41 PDT"]
[Termination "ACollins05 won on time"]

1. d4 {[%clk 0:03:00.9]} 1... b5 {[%clk 0:02:58.7]} 2. e4 {[%clk 0:02:59.7]}
2... a6 {[%clk 0:02:58.6]} 3. Bd3 {[%clk 0:02:58.9]} 3... Bb7 {[%clk 0:02:59.2]}
4. c3 {[%clk 0:02:58.8]} 4... e6 {[%clk 0:02:59.9]} 5. f4 {[%clk 0:02:57.8]}
5... c5 {[%clk 0:03:00.2]} 6. Nf3 {[%clk 0:02:56.8]} 6... Nf6 {[%clk 0:03:00.8]}
7. Nbd2 {[%clk 0:02:54.2]} 7... d6 {[%clk 0:02:59.7]} 8. O-O {[%clk 0:02:52.9]}
8... Be7 {[%clk 0:03:00.3]} 9. f5 {[%clk 0:02:44.3]} 9... exf5 {[%clk
0:02:55.8]} 10. e5 {[%clk 0:02:41.7]} 10... dxe5 {[%clk 0:02:53.2]} 11. Nxe5
{[%clk 0:02:26.5]} 11... g6 {[%clk 0:02:51.1]} 12. Ndf3 {[%clk 0:02:22.2]} 12...
cxd4 {[%clk 0:02:49]} 13. Bh6 {[%clk 0:02:13.8]} 13... Nc6 {[%clk 0:02:32.6]}
14. a4 {[%clk 0:02:05.8]} 14... Nxe5 {[%clk 0:02:30.3]} 15. Nxe5 {[%clk
0:02:06.7]} 15... Qd5 {[%clk 0:02:29.5]} 16. Nf3 {[%clk 0:01:59.7]} 16... dxc3
{[%clk 0:02:22.5]} 17. axb5 {[%clk 0:01:51.7]} 17... cxb2 {[%clk 0:02:18.2]} 18.
Rxa6 {[%clk 0:01:45.3]} 18... Bxa6 {[%clk 0:02:14.9]} 19. bxa6 {[%clk
0:01:44.8]} 19... Ng4 {[%clk 0:01:21.4]} 20. Bg7 {[%clk 0:01:14.1]} 20... Rg8
{[%clk 0:01:07.2]} 21. Bxb2 {[%clk 0:01:07]} 21... Kf8 {[%clk 0:01:02.2]} 22.
Qe2 {[%clk 0:00:57.1]} 22... Re8 {[%clk 0:00:56.1]} 23. Kh1 {[%clk 0:00:42.4]}
23... Bf6 {[%clk 0:00:53.5]} 24. Qc2 {[%clk 0:00:18.6]} 24... Bxb2 {[%clk
0:00:42.9]} 25. Bc4 {[%clk 0:00:14.8]} 25... Qc5 {[%clk 0:00:36.8]} 26. Qxb2
{[%clk 0:00:12]} 26... Qxc4 {[%clk 0:00:36.9]} 27. Rc1 {[%clk 0:00:11.2]} 27...
Qxa6 {[%clk 0:00:32.4]} 28. Ng5 {[%clk 0:00:10.9]} 28... Nf6 {[%clk 0:00:22.9]}
29. h3 {[%clk 0:00:03.6]} 29... Kg7 {[%clk 0:00:21.5]} 0-1

[Event "Late-Titled-Tuesday-Blitz-July-09-2024"]
[Site "Chess.com"]
[Date "2024.07.09"]
[Round "2"]
[White "Sek_Konstantin"]
[Black "urano56"]
[Result "1-0"]
[WhiteElo "2720"]
[BlackElo "2413"]
[TimeControl "180+1"]
[EndTime "14:17:42 PDT"]
[Termination "Sek_Konstantin won by resignation"]

1. e4 {[%clk 0:03:00.9]} 1... e6 {[%clk 0:02:53]} 2. d4 {[%clk 0:02:59.8]} 2...
d5 {[%clk 0:02:53.2]} 3. Nd2 {[%clk 0:02:59.8]} 3... c5 {[%clk 0:02:51.5]} 4. c3
{[%clk 0:02:59]} 4... Nc6 {[%clk 0:02:50.4]} 5. Ngf3 {[%clk 0:02:57.9]} 5...
dxe4 {[%clk 0:02:48.7]} 6. Nxe4 {[%clk 0:02:57.2]} 6... cxd4 {[%clk 0:02:48.9]}
7. cxd4 {[%clk 0:02:57]} 7... Nf6 {[%clk 0:02:48.3]} 8. Nxf6+ {[%clk 0:02:56]}
8... gxf6 {[%clk 0:02:42.7]} 9. Bd3 {[%clk 0:02:45.3]} 9... h5 {[%clk
0:02:21.9]} 10. O-O {[%clk 0:02:44]} 10... h4 {[%clk 0:02:18.9]} 11. Re1 {[%clk
0:02:35.2]} 11... h3 {[%clk 0:02:14]} 12. g3 {[%clk 0:02:34.6]} 12... Be7 {[%clk
0:02:12.1]} 13. Be4 {[%clk 0:02:31.1]} 13... f5 {[%clk 0:02:08]} 14. Bxc6+
{[%clk 0:02:28.7]} 14... bxc6 {[%clk 0:02:08.9]} 15. Bf4 {[%clk 0:02:24.7]}
15... c5 {[%clk 0:02:03.6]} 16. dxc5 {[%clk 0:01:48.7]} 16... Qxd1 {[%clk
0:01:54.2]} 17. Rexd1 {[%clk 0:01:48]} 17... Bxc5 {[%clk 0:01:54.7]} 18. Rac1
{[%clk 0:01:46.9]} 18... Bb6 {[%clk 0:01:52.3]} 19. Bd6 {[%clk 0:01:42.4]} 19...
Bb7 {[%clk 0:01:47.2]} 20. Ne5 {[%clk 0:01:42.5]} 20... Rc8 {[%clk 0:01:39.2]}
21. Rxc8+ {[%clk 0:01:39]} 21... Bxc8 {[%clk 0:01:39.3]} 22. b4 {[%clk
0:01:30.7]} 22... Rg8 {[%clk 0:01:33.3]} 23. a4 {[%clk 0:01:28.5]} 23... f6
{[%clk 0:01:32.4]} 24. Nc4 {[%clk 0:01:24.8]} 24... Bd8 {[%clk 0:01:28.4]} 25.
Bc5 {[%clk 0:01:24.2]} 25... Be7 {[%clk 0:01:15.2]} 26. f4 {[%clk 0:01:11.3]}
26... Bd7 {[%clk 0:01:10.7]} 27. Nd6+ {[%clk 0:01:00.8]} 27... Bxd6 {[%clk
0:01:09.8]} 28. Rxd6 {[%clk 0:01:01.4]} 28... Bxa4 {[%clk 0:01:01]} 29. Rxe6+
{[%clk 0:01:01]} 29... Kd7 {[%clk 0:01:01.2]} 30. Ra6 {[%clk 0:00:59]} 30... Bb5
{[%clk 0:00:57]} 31. Rxa7+ {[%clk 0:00:58.9]} 31... Kc6 {[%clk 0:00:57.4]} 32.
Rf7 {[%clk 0:00:57.7]} 32... Bd3 {[%clk 0:00:53.5]} 33. Rxf6+ {[%clk 0:00:57.7]}
33... Kb5 {[%clk 0:00:52.6]} 34. Rd6 {[%clk 0:00:55.7]} 34... Be4 {[%clk
0:00:52.2]} 35. Kf2 {[%clk 0:00:54.9]} 35... Ra8 {[%clk 0:00:51.1]} 36. Rd2
{[%clk 0:00:54.9]} 36... Ra3 {[%clk 0:00:50.1]} 37. Be3 {[%clk 0:00:54]} 37...
Ra1 {[%clk 0:00:49.3]} 38. Bc5 {[%clk 0:00:51.1]} 38... Rh1 {[%clk 0:00:49]} 39.
Ke3 {[%clk 0:00:50.9]} 39... Kc4 {[%clk 0:00:34.9]} 40. g4 {[%clk 0:00:47.8]}
40... Re1+ {[%clk 0:00:32.2]} 41. Kf2 {[%clk 0:00:47.2]} 41... Rh1 {[%clk
0:00:32.1]} 42. Kg3 {[%clk 0:00:44.9]} 42... Rg1+ {[%clk 0:00:22.1]} 43. Bxg1
{[%clk 0:00:43.9]} 1-0

[Event "Late-Titled-Tuesday-Blitz-July-09-2024"]
[Site "Chess.com"]
[Date "2024.07.09"]
[Round "2"]
[White "PNEPaul"]
[Black "JavierRuizVazquez"]
[Result "1/2-1/2"]
[WhiteElo "1890"]
[BlackElo "2412"]
[TimeControl "180+1"]
[EndTime "14:17:43 PDT"]
[Termination "Game drawn by agreement"]

1. e4 {[%clk 0:03:00.9]} 1... c6 {[%clk 0:03:00.1]} 2. d4 {[%clk 0:03:00]} 2...
d5 {[%clk 0:03:00.3]} 3. Nc3 {[%clk 0:03:00.3]} 3... dxe4 {[%clk 0:03:00.2]} 4.
f3 {[%clk 0:03:00.5]} 4... exf3 {[%clk 0:02:58.8]} 5. Nxf3 {[%clk 0:03:00.6]}
5... Nf6 {[%clk 0:02:59]} 6. Bc4 {[%clk 0:03:00.4]} 6... e6 {[%clk 0:02:56]} 7.
O-O {[%clk 0:03:00.1]} 7... Be7 {[%clk 0:02:55.5]} 8. Ne5 {[%clk 0:03:00.1]}
8... O-O {[%clk 0:02:55.4]} 9. Be3 {[%clk 0:02:55.8]} 9... Nbd7 {[%clk
0:02:54.8]} 10. Qe2 {[%clk 0:02:55.5]} 10... Nxe5 {[%clk 0:02:53.6]} 11. dxe5
{[%clk 0:02:54.3]} 11... Nd5 {[%clk 0:02:54.2]} 12. Nxd5 {[%clk 0:02:50.7]}
12... exd5 {[%clk 0:02:48.8]} 13. Bd3 {[%clk 0:02:50.7]} 13... g6 {[%clk
0:02:35.6]} 14. Rae1 {[%clk 0:02:39.3]} 14... Bg5 {[%clk 0:02:34.9]} 15. Bxg5
{[%clk 0:02:35]} 15... Qxg5 {[%clk 0:02:35.8]} 16. Rf6 {[%clk 0:02:18.9]} 16...
Be6 {[%clk 0:02:14.1]} 17. Qf2 {[%clk 0:02:14]} 17... Rae8 {[%clk 0:02:09.8]}
18. Rf3 {[%clk 0:01:45.4]} 18... a6 {[%clk 0:02:07.4]} 19. Rg3 {[%clk
0:01:45.3]} 19... Qe7 {[%clk 0:01:53.3]} 20. Qf4 {[%clk 0:01:38.8]} 20... Kg7
{[%clk 0:01:43]} 21. Rf1 {[%clk 0:01:29.1]} 21... f6 {[%clk 0:01:37.5]} 22. h3
{[%clk 0:01:04.6]} 22... Bd7 {[%clk 0:01:28]} 23. exf6+ {[%clk 0:00:53.2]} 23...
Rxf6 {[%clk 0:01:27.5]} 24. Qd4 {[%clk 0:00:47.9]} 24... Rf8 {[%clk 0:01:25.3]}
25. Rgf3 {[%clk 0:00:45.2]} 25... Qd6 {[%clk 0:01:22.3]} 26. Rxf6 {[%clk
0:00:34.3]} 26... Rxf6 {[%clk 0:01:21.6]} 27. Rxf6 {[%clk 0:00:31.9]} 27... Qxf6
{[%clk 0:01:21]} 28. Qb6 {[%clk 0:00:31.2]} 28... Kf7 {[%clk 0:00:57.5]} 29.
Qxb7 {[%clk 0:00:29.7]} 29... Ke7 {[%clk 0:00:55]} 30. Qb4+ {[%clk 0:00:28.2]}
30... Qd6 {[%clk 0:00:52.9]} 31. Qxd6+ {[%clk 0:00:25.6]} 31... Kxd6 {[%clk
0:00:52.9]} 32. Bxa6 {[%clk 0:00:25.6]} 32... c5 {[%clk 0:00:49.6]} 33. Be2
{[%clk 0:00:24.3]} 33... Bf5 {[%clk 0:00:43.5]} 34. c3 {[%clk 0:00:23.7]} 34...
d4 {[%clk 0:00:43.2]} 35. cxd4 {[%clk 0:00:21.8]} 35... cxd4 {[%clk 0:00:44.1]}
36. Kf2 {[%clk 0:00:21.4]} 36... Kc5 {[%clk 0:00:43.3]} 37. Ke1 {[%clk 0:00:18]}
37... d3 {[%clk 0:00:42.3]} 38. Bf3 {[%clk 0:00:16.6]} 38... Kd4 {[%clk
0:00:41.3]} 39. Kd2 {[%clk 0:00:16.5]} 39... Be6 {[%clk 0:00:40.5]} 40. a3
{[%clk 0:00:15.1]} 40... Bb3 {[%clk 0:00:39.8]} 41. Bc6 {[%clk 0:00:12.2]} 41...
g5 {[%clk 0:00:37.9]} 42. Bf3 {[%clk 0:00:11.9]} 42... h6 {[%clk 0:00:37.9]} 43.
Bc6 {[%clk 0:00:11.9]} 1/2-1/2

[Event "Late-Titled-Tuesday-Blitz-July-09-2024"]
[Site "Chess.com"]
[Date "2024.07.09"]
[Round "2"]
[White "norwaytoadog"]
[Black "ncofre98"]
[Result "0-1"]
[WhiteElo "2338"]
[BlackElo "2551"]
[TimeControl "180+1"]
[EndTime "14:17:46 PDT"]
[Termination "ncofre98 won on time"]

1. e4 {[%clk 0:02:59.6]} 1... c5 {[%clk 0:02:59.8]} 2. Nf3 {[%clk 0:02:55.5]}
2... d6 {[%clk 0:03:00.4]} 3. Bb5+ {[%clk 0:02:55]} 3... Bd7 {[%clk 0:03:00]} 4.
Bxd7+ {[%clk 0:02:52.3]} 4... Nxd7 {[%clk 0:03:00.9]} 5. O-O {[%clk 0:02:52.5]}
5... Ngf6 {[%clk 0:03:00.9]} 6. Qe2 {[%clk 0:02:52.9]} 6... e6 {[%clk
0:03:01.1]} 7. b3 {[%clk 0:02:52.4]} 7... Be7 {[%clk 0:02:53.9]} 8. Bb2 {[%clk
0:02:52.7]} 8... Rc8 {[%clk 0:02:44.4]} 9. c4 {[%clk 0:02:50.7]} 9... O-O {[%clk
0:02:36.9]} 10. d3 {[%clk 0:02:50.2]} 10... a6 {[%clk 0:02:35.8]} 11. Nc3 {[%clk
0:02:49.9]} 11... Qc7 {[%clk 0:02:32.4]} 12. Nd2 {[%clk 0:02:38.4]} 12... Ne5
{[%clk 0:02:28.6]} 13. f4 {[%clk 0:02:32.5]} 13... Nc6 {[%clk 0:02:28.1]} 14.
Nf3 {[%clk 0:02:23.6]} 14... Nd7 {[%clk 0:02:24.9]} 15. Nd1 {[%clk 0:02:17.4]}
15... Bf6 {[%clk 0:02:24.3]} 16. Ne3 {[%clk 0:02:14.4]} 16... b5 {[%clk
0:02:09.8]} 17. g4 {[%clk 0:02:12.5]} 17... Nd4 {[%clk 0:02:05.6]} 18. Nxd4
{[%clk 0:02:05.1]} 18... Bxd4 {[%clk 0:02:05.6]} 19. Bxd4 {[%clk 0:01:40.7]}
19... cxd4 {[%clk 0:02:06.5]} 20. Nc2 {[%clk 0:01:38.6]} 20... bxc4 {[%clk
0:02:03.9]} 21. bxc4 {[%clk 0:01:35.5]} 21... Qc5 {[%clk 0:02:01.2]} 22. Qf2
{[%clk 0:01:28.5]} 22... e5 {[%clk 0:02:00.7]} 23. f5 {[%clk 0:01:26.5]} 23...
Rb8 {[%clk 0:01:57.3]} 24. Rab1 {[%clk 0:01:25.4]} 24... Qa5 {[%clk 0:01:55]}
25. g5 {[%clk 0:00:55.4]} 25... Rxb1 {[%clk 0:01:52.4]} 26. Rxb1 {[%clk
0:00:55]} 26... Qxa2 {[%clk 0:01:52.4]} 27. Ra1 {[%clk 0:00:52.1]} 27... Qb3
{[%clk 0:01:51.9]} 28. Qe2 {[%clk 0:00:38.7]} 28... Nc5 {[%clk 0:01:49.8]} 29.
Ra3 {[%clk 0:00:27.3]} 29... Qb1+ {[%clk 0:01:47]} 30. Kf2 {[%clk 0:00:17.9]}
30... Rb8 {[%clk 0:01:46.5]} 31. Ra1 {[%clk 0:00:17]} 31... Qb3 {[%clk
0:01:42.9]} 32. Ra3 {[%clk 0:00:16.3]} 32... Qb2 {[%clk 0:01:43]} 33. f6 {[%clk
0:00:11.8]} 33... Rb3 {[%clk 0:01:41.2]} 34. Rxb3 {[%clk 0:00:10.6]} 34... Qxb3
{[%clk 0:01:41.5]} 35. Ne1 {[%clk 0:00:09.7]} 35... a5 {[%clk 0:01:27.6]} 36.
Qg4 {[%clk 0:00:09.6]} 36... Ne6 {[%clk 0:01:26.5]} 37. Nf3 {[%clk 0:00:07.9]}
37... Qxd3 {[%clk 0:01:15.2]} 38. fxg7 {[%clk 0:00:07.5]} 38... Qe3+ {[%clk
0:01:15.1]} 39. Kg2 {[%clk 0:00:07.5]} 39... d3 {[%clk 0:01:06.6]} 40. h4 {[%clk
0:00:05.3]} 40... d2 {[%clk 0:01:06.2]} 41. Nxe5 {[%clk 0:00:04.5]} 41... dxe5
{[%clk 0:01:01.6]} 42. h5 {[%clk 0:00:03.6]} 42... Nf4+ {[%clk 0:00:59.7]} 43.
Kh2 {[%clk 0:00:03.6]} 43... Qf2+ {[%clk 0:00:57.7]} 44. Kh1 {[%clk 0:00:03.9]}
44... d1=Q+ {[%clk 0:00:55.4]} 0-1

[Event "Late-Titled-Tuesday-Blitz-July-09-2024"]
[Site "Chess.com"]
[Date "2024.07.09"]
[Round "2"]
[White "SocoLoco"]
[Black "cthulhuuu"]
[Result "0-1"]
[WhiteElo "2107"]
[BlackElo "2458"]
[TimeControl "180+1"]
[EndTime "14:17:51 PDT"]
[Termination "cthulhuuu won on time"]

1. e4 {[%clk 0:03:00.9]} 1... d6 {[%clk 0:02:59.9]} 2. d4 {[%clk 0:02:59.7]}
2... Nf6 {[%clk 0:03:00.6]} 3. Nc3 {[%clk 0:02:59.4]} 3... c6 {[%clk 0:03:01.2]}
4. Nf3 {[%clk 0:02:57.9]} 4... Bg4 {[%clk 0:03:01.6]} 5. h3 {[%clk 0:02:56.6]}
5... Bh5 {[%clk 0:03:02.3]} 6. g4 {[%clk 0:02:55.5]} 6... Bg6 {[%clk 0:03:02.7]}
7. Bd3 {[%clk 0:02:54.7]} 7... e6 {[%clk 0:03:02.9]} 8. Bg5 {[%clk 0:02:53]}
8... Be7 {[%clk 0:03:03]} 9. Qd2 {[%clk 0:02:50.3]} 9... h6 {[%clk 0:03:00.1]}
10. Be3 {[%clk 0:02:49.2]} 10... d5 {[%clk 0:03:00.3]} 11. Ne5 {[%clk
0:02:41.7]} 11... Bxe4 {[%clk 0:02:57.8]} 12. Bxe4 {[%clk 0:02:36.9]} 12... Nxe4
{[%clk 0:02:57.8]} 13. Nxe4 {[%clk 0:02:35.8]} 13... dxe4 {[%clk 0:02:58.7]} 14.
O-O-O {[%clk 0:02:11.3]} 14... Nd7 {[%clk 0:02:58.6]} 15. Qe2 {[%clk 0:01:41.4]}
15... Nf6 {[%clk 0:02:57.8]} 16. g5 {[%clk 0:01:34.5]} 16... hxg5 {[%clk
0:02:58.7]} 17. Bxg5 {[%clk 0:01:33.6]} 17... Qa5 {[%clk 0:02:10.2]} 18. Kb1
{[%clk 0:01:30.2]} 18... Rd8 {[%clk 0:02:10.9]} 19. c3 {[%clk 0:01:20.6]} 19...
Rd5 {[%clk 0:01:59.8]} 20. Bxf6 {[%clk 0:01:06.7]} 20... gxf6 {[%clk 0:01:49.4]}
21. Nc4 {[%clk 0:01:06.2]} 21... Qa6 {[%clk 0:01:45.9]} 22. Rde1 {[%clk
0:01:00.1]} 22... Rdh5 {[%clk 0:01:44.3]} 23. Nd2 {[%clk 0:00:47]} 23... Qxe2
{[%clk 0:01:44]} 24. Rxe2 {[%clk 0:00:46.2]} 24... f5 {[%clk 0:01:44.2]} 25. f3
{[%clk 0:00:29.5]} 25... exf3 {[%clk 0:01:44.3]} 26. Nxf3 {[%clk 0:00:28.3]}
26... Rxh3 {[%clk 0:01:44.5]} 27. Rf1 {[%clk 0:00:27.4]} 27... Bf6 {[%clk
0:01:34.9]} 28. Kc2 {[%clk 0:00:25.8]} 28... Rh1 {[%clk 0:01:34.9]} 29. Rff2
{[%clk 0:00:24.4]} 29... Kd7 {[%clk 0:01:31]} 30. Nd2 {[%clk 0:00:23.3]} 30...
Rg1 {[%clk 0:01:06.3]} 31. Kb3 {[%clk 0:00:21.5]} 31... b5 {[%clk 0:01:04.1]}
32. a4 {[%clk 0:00:20.3]} 32... a6 {[%clk 0:01:02.8]} 33. axb5 {[%clk
0:00:19.9]} 33... axb5 {[%clk 0:01:03]} 34. Nf3 {[%clk 0:00:18.9]} 34... Rg3
{[%clk 0:01:00.5]} 35. Nd2 {[%clk 0:00:17.7]} 35... Bxd4 {[%clk 0:00:59.1]} 36.
Rf3 {[%clk 0:00:15.9]} 36... Rxf3 {[%clk 0:00:59]} 37. Nxf3 {[%clk 0:00:16.4]}
37... Bf6 {[%clk 0:00:59.8]} 38. Rd2+ {[%clk 0:00:16.2]} 38... Kc7 {[%clk
0:00:59.9]} 39. c4 {[%clk 0:00:15.9]} 39... Rh3 {[%clk 0:00:59.9]} 40. Rd3
{[%clk 0:00:16.5]} 40... e5 {[%clk 0:01:00.3]} 41. Nxe5 {[%clk 0:00:07.6]} 41...
bxc4+ {[%clk 0:00:53.4]} 42. Kxc4 {[%clk 0:00:06.8]} 42... Rh4+ {[%clk
0:00:52.7]} 43. Rd4 {[%clk 0:00:02.8]} 43... Rxd4+ {[%clk 0:00:52.9]} 44. Kxd4
{[%clk 0:00:03.2]} 44... Kd6 {[%clk 0:00:53.8]} 0-1

[Event "Late-Titled-Tuesday-Blitz-July-09-2024"]
[Site "Chess.com"]
[Date "2024.07.09"]
[Round "2"]
[White "VladimirKramnik"]
[Black "hellokostya"]
[Result "1-0"]
[WhiteElo "2981"]
[BlackElo "2628"]
[TimeControl "180+1"]
[EndTime "14:17:57 PDT"]
[Termination "VladimirKramnik won by resignation"]

1. e4 {[%clk 0:03:00.9]} 1... c5 {[%clk 0:02:59.4]} 2. Nf3 {[%clk 0:03:00.6]}
2... Nc6 {[%clk 0:03:00.1]} 3. Bb5 {[%clk 0:02:59.2]} 3... Nf6 {[%clk
0:03:00.1]} 4. Nc3 {[%clk 0:02:57]} 4... Qc7 {[%clk 0:02:57.1]} 5. O-O {[%clk
0:02:54.7]} 5... Nd4 {[%clk 0:02:56.8]} 6. Re1 {[%clk 0:02:53.1]} 6... e5 {[%clk
0:02:56.9]} 7. Nxd4 {[%clk 0:02:45.2]} 7... cxd4 {[%clk 0:02:56.1]} 8. Nd5
{[%clk 0:02:45.8]} 8... Nxd5 {[%clk 0:02:49.2]} 9. exd5 {[%clk 0:02:46.7]} 9...
Be7 {[%clk 0:02:42.9]} 10. Qh5 {[%clk 0:02:36.2]} 10... a6 {[%clk 0:02:35.5]}
11. Qxe5 {[%clk 0:02:31.6]} 11... Qxe5 {[%clk 0:02:29.4]} 12. Rxe5 {[%clk
0:02:32.4]} 12... Kd8 {[%clk 0:02:30]} 13. Bd3 {[%clk 0:02:25.9]} 13... Bd6
{[%clk 0:02:28.9]} 14. Re4 {[%clk 0:02:22.2]} 14... b5 {[%clk 0:02:24]} 15. b3
{[%clk 0:02:16]} 15... Bb7 {[%clk 0:02:21.8]} 16. Bb2 {[%clk 0:02:13.5]} 16...
Bxd5 {[%clk 0:01:50]} 17. Rxd4 {[%clk 0:02:13]} 17... Be5 {[%clk 0:01:50.6]} 18.
Rxd5 {[%clk 0:02:12.2]} 18... Bxb2 {[%clk 0:01:51.3]} 19. Rb1 {[%clk 0:02:11.8]}
19... Bf6 {[%clk 0:01:49.5]} 20. a4 {[%clk 0:02:09.2]} 20... b4 {[%clk
0:01:46.1]} 21. Ra5 {[%clk 0:02:03.2]} 21... Re8 {[%clk 0:01:38.6]} 22. Rxa6
{[%clk 0:01:54.9]} 22... Rxa6 {[%clk 0:01:37.2]} 23. Bxa6 {[%clk 0:01:55.8]}
23... Bg5 {[%clk 0:01:37.5]} 24. Rd1 {[%clk 0:01:56]} 24... Kc7 {[%clk
0:01:37.4]} 25. g3 {[%clk 0:01:53.4]} 25... Kb6 {[%clk 0:01:35.8]} 26. Bb5
{[%clk 0:01:53.1]} 26... Re7 {[%clk 0:01:35.8]} 27. c3 {[%clk 0:01:47]} 27...
Ka5 {[%clk 0:01:22.1]} 28. Kf1 {[%clk 0:01:46.3]} 28... d6 {[%clk 0:01:19.9]}
29. c4 {[%clk 0:01:35.5]} 29... Bf6 {[%clk 0:01:12.1]} 30. d4 {[%clk 0:01:34.7]}
30... Re4 {[%clk 0:01:10.9]} 31. c5 {[%clk 0:01:35.2]} 31... Rxd4 {[%clk
0:01:03.8]} 32. Rxd4 {[%clk 0:01:32.5]} 32... Bxd4 {[%clk 0:01:04.7]} 33. cxd6
{[%clk 0:01:32.4]} 33... Kb6 {[%clk 0:01:03.4]} 34. d7 {[%clk 0:01:31]} 34...
Kc7 {[%clk 0:01:03.5]} 35. a5 {[%clk 0:01:28.3]} 35... Ba7 {[%clk 0:01:00.1]}
36. Ke2 {[%clk 0:01:27]} 36... g5 {[%clk 0:00:59.1]} 37. f3 {[%clk 0:01:26.1]}
37... h5 {[%clk 0:00:57.4]} 38. h4 {[%clk 0:01:18.2]} 38... gxh4 {[%clk
0:00:54.7]} 39. gxh4 {[%clk 0:01:18.2]} 39... Bc5 {[%clk 0:00:49.4]} 40. a6
{[%clk 0:01:14.9]} 40... Be7 {[%clk 0:00:48.2]} 41. Bc4 {[%clk 0:01:06.2]} 41...
Kb6 {[%clk 0:00:42.7]} 42. Bxf7 {[%clk 0:01:00.6]} 42... Kxa6 {[%clk 0:00:41.1]}
43. Bxh5 {[%clk 0:00:57.8]} 43... Bxh4 {[%clk 0:00:38.5]} 44. Kd3 {[%clk
0:00:57.4]} 44... Kb6 {[%clk 0:00:38.1]} 45. Kc4 {[%clk 0:00:56.1]} 45... Be7
{[%clk 0:00:37.6]} 46. Kd5 {[%clk 0:00:52.8]} 46... Bg5 {[%clk 0:00:35.2]} 47.
f4 {[%clk 0:00:51.1]} 47... Bh4 {[%clk 0:00:34.4]} 48. Ke6 {[%clk 0:00:50.8]}
48... Kc7 {[%clk 0:00:34.7]} 49. f5 {[%clk 0:00:50.8]} 49... Kd8 {[%clk
0:00:34.7]} 50. f6 {[%clk 0:00:49.2]} 50... Bg5 {[%clk 0:00:34.9]} 51. Bg4
{[%clk 0:00:47.4]} 51... Bh6 {[%clk 0:00:31.4]} 52. Kf7 {[%clk 0:00:47.1]} 52...
Bg5 {[%clk 0:00:31.2]} 53. Kg7 {[%clk 0:00:46.2]} 1-0

[Event "Late-Titled-Tuesday-Blitz-July-09-2024"]
[Site "Chess.com"]
[Date "2024.07.09"]
[Round "2"]
[White "tjallkompall"]
[Black "Slovineanu"]
[Result "1/2-1/2"]
[WhiteElo "2785"]
[BlackElo "2529"]
[TimeControl "180+1"]
[EndTime "14:17:57 PDT"]
[Termination "Game drawn - insufficient material"]

1. e4 {[%clk 0:03:00.9]} 1... c6 {[%clk 0:02:58.2]} 2. Nf3 {[%clk 0:03:00.2]}
2... d5 {[%clk 0:02:57.9]} 3. exd5 {[%clk 0:03:00.7]} 3... cxd5 {[%clk
0:02:57.7]} 4. d4 {[%clk 0:03:01.2]} 4... Nf6 {[%clk 0:02:56.9]} 5. Ne5 {[%clk
0:03:00.7]} 5... Nc6 {[%clk 0:02:55.4]} 6. Bb5 {[%clk 0:03:00.9]} 6... Bd7
{[%clk 0:02:55.5]} 7. Nxd7 {[%clk 0:03:00.2]} 7... Qxd7 {[%clk 0:02:55.3]} 8.
O-O {[%clk 0:03:00]} 8... a6 {[%clk 0:02:55.2]} 9. Be2 {[%clk 0:02:56.9]} 9...
e6 {[%clk 0:02:54.5]} 10. c3 {[%clk 0:02:57.2]} 10... Bd6 {[%clk 0:02:53.4]} 11.
Nd2 {[%clk 0:02:56.5]} 11... O-O {[%clk 0:02:52.1]} 12. Re1 {[%clk 0:02:55.7]}
12... b5 {[%clk 0:02:36.6]} 13. Nf3 {[%clk 0:02:54.3]} 13... Ne4 {[%clk
0:02:33.1]} 14. Bd3 {[%clk 0:02:45.6]} 14... f5 {[%clk 0:02:28.5]} 15. Ng5
{[%clk 0:02:43.7]} 15... Qe7 {[%clk 0:02:01.9]} 16. Nf3 {[%clk 0:02:42.3]} 16...
Qc7 {[%clk 0:02:00.5]} 17. Be3 {[%clk 0:02:34.8]} 17... Kh8 {[%clk 0:01:49]} 18.
Rc1 {[%clk 0:02:30.2]} 18... Rg8 {[%clk 0:01:36.2]} 19. b3 {[%clk 0:02:28.4]}
19... g5 {[%clk 0:01:31.3]} 20. c4 {[%clk 0:02:28.5]} 20... g4 {[%clk
0:01:20.2]} 21. Ne5 {[%clk 0:02:14.4]} 21... Nxe5 {[%clk 0:01:12.8]} 22. dxe5
{[%clk 0:02:15.3]} 22... Ba3 {[%clk 0:00:46.1]} 23. Rc2 {[%clk 0:02:02]} 23...
dxc4 {[%clk 0:00:19.1]} 24. Bxe4 {[%clk 0:01:54.4]} 24... fxe4 {[%clk
0:00:17.4]} 25. bxc4 {[%clk 0:01:55]} 25... Rad8 {[%clk 0:00:17.5]} 26. Qe2
{[%clk 0:01:46.6]} 26... Qxe5 {[%clk 0:00:16.1]} 27. cxb5 {[%clk 0:01:41.5]}
27... axb5 {[%clk 0:00:15.9]} 28. g3 {[%clk 0:01:36.4]} 28... Bd6 {[%clk
0:00:15.7]} 29. Bf4 {[%clk 0:01:33]} 29... Qf5 {[%clk 0:00:16.1]} 30. Bxd6
{[%clk 0:01:33.3]} 30... Rxd6 {[%clk 0:00:16.6]} 31. Qxe4 {[%clk 0:01:33.1]}
31... Rgd8 {[%clk 0:00:13.9]} 32. Qxf5 {[%clk 0:01:29.8]} 32... exf5 {[%clk
0:00:14.4]} 33. Rc5 {[%clk 0:01:28.3]} 33... Rd5 {[%clk 0:00:14.4]} 34. Re5
{[%clk 0:01:28.9]} 34... Rxc5 {[%clk 0:00:13.5]} 35. Rxc5 {[%clk 0:01:28.5]}
35... Rd2 {[%clk 0:00:13.3]} 36. Rxb5 {[%clk 0:01:25.1]} 36... Rxa2 {[%clk
0:00:13.5]} 37. Rxf5 {[%clk 0:01:25.8]} 37... Ra4 {[%clk 0:00:13.2]} 38. Rf4
{[%clk 0:01:23.3]} 38... Rxf4 {[%clk 0:00:11.7]} 39. gxf4 {[%clk 0:01:23.5]}
39... Kg7 {[%clk 0:00:12.6]} 40. Kg2 {[%clk 0:01:22.2]} 40... Kg6 {[%clk
0:00:12.8]} 41. f3 {[%clk 0:00:55.2]} 41... Kf5 {[%clk 0:00:10.1]} 42. Kg3
{[%clk 0:00:55.2]} 42... h5 {[%clk 0:00:09.7]} 43. fxg4+ {[%clk 0:00:33.1]}
43... hxg4 {[%clk 0:00:10.6]} 44. h3 {[%clk 0:00:33.8]} 44... gxh3 {[%clk
0:00:10.8]} 45. Kxh3 {[%clk 0:00:34.5]} 45... Kxf4 {[%clk 0:00:11.7]} 1/2-1/2